bitfinex/quotes_ETHUSD_20250508
["timestamp","ask_amount","ask_price","bid_price","bid_amount"]
[1746744475865,4.56609635,2190.1,2189.8,3.0]
[1746744476575,4.56612556,2190.1,2189.8,3.0]
[1746744476892,4.56589453,2190.2,2189.8,7.56661647]
[1746744477180,4.56589453,2190.2,2189.8,3.0]
[1746744477384,4.56624133,2190.0,2189.8,3.0]
[1746744477693,4.56641855,2189.9,2189.8,3.0]
[1746744479255,4.5663331,2190.0,2189.8,3.0]
[1746744479452,4.56507768,2190.6,2190.0,7.56610569]
[1746744479673,5.56694362,2190.6,2190.2,6.61680842]
[1746744479885,1.00196679,2190.6,2190.2,6.61680842]
[1746744480190,0.55,2190.7,2190.2,3.0]
[1746744480494,0.55,2190.8,2190.2,3.0]
[1746744480787,4.56494306,2190.7,2190.2,3.0]
[1746744480990,4.56462691,2190.8,2190.4,3.0]
[1746744481172,5.56008323,2190.8,2190.4,3.0]
[1746744481580,4.56478998,2190.7,2190.3,3.0]
[1746744481882,4.56503092,2190.6,2190.3,0.14271262]
[1746744482186,4.56484981,2190.7,2190.3,0.14271262]
[1746744482414,0.99545632,2190.8,2190.4,4.56517224]
[1746744482615,0.55598047,2190.7,2190.5,3.0]
[1746744482818,0.55598047,2190.7,2190.4,3.0]
[1746744483121,5.12073304,2190.7,2190.4,3.0]
[1746744483284,0.55598047,2190.7,2190.4,3.0]
[1746744483485,4.56504214,2190.6,2190.4,3.0]
[1746744483683,4.56516776,2190.5,2190.4,3.0]
[1746744483898,4.56516776,2190.5,2190.3,0.1427161]
[1746744484423,0.55,2190.9,2190.3,0.1427161]
[1746744484584,4.56504763,2190.6,2190.2,6.10700509]
[1746744484791,5.02177361,2190.5,2190.2,6.10700509]
[1746744485438,0.45650476,2190.5,2190.2,6.10700509]
[1746744485945,4.56556943,2190.4,2190.2,6.10700509]
[1746744486088,5.11439545,2190.9,2190.2,6.10700509]
[1746744486089,0.55,2190.9,2190.2,6.10700509]
[1746744486288,5.11435593,2190.9,2190.2,6.10700509]
[1746744486490,4.56526411,2190.5,2190.2,6.10700509]
[1746744486911,5.11454263,2190.8,2190.2,6.10700509]
[1746744487109,4.56558462,2190.3,2190.2,6.10700509]
[1746744487483,4.5654999,2190.4,2190.2,6.10700509]
[1746744487719,5.1152916,2190.5,2190.2,6.10700509]
[1746744487912,4.5653906,2190.4,2190.2,6.10700509]
[1746744488109,0.51145426,2190.7,2190.3,3.0]
[1746744488314,4.56482861,2190.7,2190.3,3.0]
[1746744488520,4.56483635,2190.7,2190.1,7.56586433]
[1746744488697,4.56483635,2190.7,2190.3,3.0]
[1746744489221,4.56483635,2190.7,2190.3,7.56558007]
[1746744489422,0.7749,2190.9,2190.3,11.19869649]
[1746744489724,4.56486341,2190.7,2190.3,6.63311642]
[1746744489926,4.56498375,2190.6,2190.3,6.63311642]
[1746744490091,0.43759,2190.8,2190.4,0.7681]
[1746744490292,4.56461987,2190.8,2190.4,0.7681]
[1746744490492,4.56475704,2190.7,2190.4,0.7681]
[1746744490695,4.56465622,2190.8,2190.4,0.7681]
[1746744491225,4.5651029,2190.6,2190.4,0.7681]
[1746744491399,4.56483221,2190.7,2190.4,0.7681]
[1746744491607,4.5647077,2190.8,2190.4,0.7681]
[1746744491808,4.5647077,2190.8,2190.5,3.0]
[1746744492335,5.6195,2192.5,2191.0,4.56412596]
[1746744492521,5.6195,2192.5,2191.5,3.0]
[1746744492522,4.56246514,2191.8,2191.5,3.0]
[1746744492723,4.56266824,2191.7,2191.6,3.601]
[1746744492912,5.47518158,2191.7,2191.6,3.601]
[1746744493450,5.47518158,2191.7,2191.4,8.02901642]
[1746744493451,0.91251334,2191.7,2191.4,8.02901642]
[1746744493625,4.56256538,2191.8,2191.4,8.02901642]
[1746744493830,4.56267369,2191.7,2191.4,8.02901642]
[1746744494139,4.5625838,2191.8,2191.4,8.02901642]
[1746744494511,4.5625838,2191.8,2191.5,3.0]
[1746744494711,4.56287643,2191.6,2191.5,3.0]
[1746744495331,4.56262754,2191.8,2191.5,3.0]
[1746744495552,4.56269048,2191.7,2191.5,3.0]
[1746744495722,4.56287643,2191.6,2191.5,3.0]
[1746744496250,4.56278578,2191.7,2191.5,3.0]
[1746744496558,4.56567543,2190.3,2190.1,0.7979]
[1746744496846,4.56579307,2190.2,2190.1,0.94062695]
[1746744497151,4.56506991,2190.6,2190.1,0.94062695]
[1746744497375,4.56445062,2190.9,2190.4,3.0]
[1746744497560,0.55,2191.6,2190.8,3.0]
[1746744497741,4.56366094,2191.3,2190.8,3.0]
[1746744497940,4.5637697,2191.2,2190.9,0.66157311]
[1746744498151,4.56342753,2191.4,2190.9,0.66157311]
[1746744498152,4.56343371,2191.4,2190.9,0.66157311]
[1746744498354,4.56343371,2191.4,2191.0,3.0]
[1746744498871,4.56287546,2191.7,2191.2,3.0]
[1746744499038,4.56290303,2191.6,2191.2,4.20230806]
[1746744499238,4.56312957,2191.5,2191.2,1.20230806]
[1746744500151,4.56298813,2191.6,2191.2,1.20230806]
[1746744500349,4.56318085,2191.5,2191.2,1.20230806]
[1746744500679,4.5630968,2191.5,2191.2,1.20230806]
[1746744500887,4.56350111,2191.3,2191.1,0.7979]
[1746744501123,0.55,2191.2,2190.8,0.7645]
[1746744501294,5.11373448,2191.2,2190.6,0.7645]
[1746744501458,0.55,2191.0,2190.6,0.7645]
[1746744501653,4.56475099,2190.7,2190.6,0.7645]
[1746744501984,4.56475099,2190.7,2190.4,0.90720592]
[1746744502151,4.56496299,2190.6,2190.4,0.7645]
[1746744502362,0.55,2191.0,2190.4,0.7645]
[1746744502539,4.56480113,2190.7,2190.4,0.7645]
[1746744502745,4.56480113,2190.7,2190.4,2.03199205]
[1746744502979,0.55,2191.0,2190.4,0.7645]
[1746744503274,4.56516776,2190.5,2190.4,0.7645]
[1746744503682,4.56540108,2190.4,2190.2,0.7645]
[1746744503883,0.55,2191.0,2190.2,0.7645]
[1746744504092,4.56433429,2190.9,2190.2,3.7645]
[1746744504244,4.56514888,2190.6,2190.2,3.7645]
[1746744504443,4.56514888,2190.6,2190.2,5.47324247]
[1746744504892,4.56514888,2190.6,2190.2,5.33051372]
[1746744505088,4.56486684,2190.7,2190.2,9.9418563]
[1746744505377,4.56496824,2190.6,2190.2,5.37616869]
[1746744505553,4.56538316,2190.4,2190.2,5.33051372]
[1746744506050,4.56509444,2190.6,2190.2,5.33051372]
[1746744506472,4.56509444,2190.6,2190.3,0.98963369]
[1746744506650,4.56517964,2190.5,2190.3,0.98963369]
[1746744507082,4.56517964,2190.5,2190.2,3.7645]
[1746744507407,4.56475099,2190.7,2190.2,3.7645]
[1746744507579,4.56475099,2190.7,2190.1,0.14272641]
[1746744507580,4.56579307,2190.2,2190.1,0.14272641]
[1746744507966,4.56621004,2190.0,2189.9,0.797]
[1746744508175,4.56558462,2190.3,2189.7,0.14272641]
[1746744508347,4.56654476,2189.9,2189.6,24.401]
[1746744508546,5.11558462,2190.3,2189.7,5.45437264]
[1746744508759,4.56657852,2189.9,2189.7,2.45437264]
[1746744509351,4.56609703,2190.1,2189.7,2.45437264]
[1746744509557,4.5664303,2189.9,2189.7,5.45437264]
[1746744509781,4.56579307,2190.2,2189.7,5.45437264]
[1746744509990,4.56619677,2190.1,2189.7,5.45437264]
[1746744510594,1.3709,2190.3,2189.7,10.02117369]
[1746744510757,4.56722736,2189.6,2189.3,7.91]
[1746744511580,4.56713069,2189.6,2189.3,0.797]
[1746744511771,4.56676447,2189.8,2189.4,3.0]
[1746744511972,4.56676447,2189.8,2189.4,4.55304844]
[1746744512371,4.56685874,2189.7,2189.4,4.55304844]
[1746744512568,4.56578004,2190.3,2189.6,8.36394885]
[1746744512775,4.56596647,2190.2,2189.8,3.0]
[1746744513156,4.56602548,2190.1,2189.8,3.0]
[1746744513470,4.56602548,2190.1,2189.8,4.29307785]
[1746744513670,4.56602548,2190.1,2189.8,1.29307785]
[1746744514094,4.56602548,2190.1,2189.8,4.29307785]
[1746744515361,4.56602548,2190.1,2189.8,1.29307785]
[1746744515870,4.56602548,2190.1,2189.8,4.29307785]
[1746744516388,4.56602548,2190.1,2189.8,1.29307785]
[1746744516589,4.56639383,2190.0,2189.6,3.797]
[1746744516782,4.56676112,2189.8,2189.6,0.797]
[1746744517298,5.11600155,2190.1,2189.6,0.797]
[1746744517502,4.5670442,2189.6,2189.5,7.091]
[1746744518000,4.5670442,2189.6,2189.5,10.091]
[1746744518366,4.5670442,2189.6,2189.5,7.091]
[1746744518600,4.5670442,2189.6,2189.5,10.091]
[1746744519666,4.5670442,2189.6,2189.5,6.56]
[1746744519862,4.56666596,2189.8,2189.2,0.7819]
[1746744520066,4.56758246,2189.4,2189.2,0.7819]
[1746744520267,4.56758246,2189.4,2189.2,3.7819]
[1746744520467,4.56767003,2189.3,2189.2,3.0]
[1746744521185,4.56758246,2189.4,2189.0,3.759]
[1746744521186,4.56756484,2189.4,2189.0,3.759]
[1746744521803,4.56771266,2189.3,2189.0,3.759]
[1746744522418,4.56700348,2189.7,2189.2,4.56779598]
[1746744522578,4.56700348,2189.7,2189.4,3.0]
[1746744522778,1.3138,2190.0,2189.1,7.56796332]
[1746744522779,4.56734861,2189.5,2189.1,7.56796332]
[1746744522977,4.56700025,2189.7,2189.3,4.56765871]
[1746744523172,4.56700025,2189.7,2189.2,4.56774966]
[1746744523399,0.55,2189.9,2189.2,8.80485824]
[1746744523700,4.56692895,2189.7,2189.2,19.47956283]
[1746744523913,4.56692895,2189.7,2189.3,4.56759169]
[1746744524770,4.56692895,2189.7,2189.2,10.34415093]
[1746744524771,4.56675666,2189.8,2189.4,4.5673812]
[1746744524996,4.56700923,2189.7,2189.3,4.56756529]
[1746744525199,4.56702755,2189.7,2189.4,3.0]
[1746744525504,4.56702755,2189.7,2189.3,0.88503842]
[1746744525720,4.56528009,2190.5,2189.7,3.8266]
[1746744525888,4.56528009,2190.5,2190.1,3.0]
[1746744526079,4.56542506,2190.4,2190.1,6.514]
[1746744526275,4.56527866,2190.5,2190.1,6.514]
[1746744526807,4.56531706,2190.5,2190.1,6.514]
[1746744527005,4.5650511,2190.6,2190.1,6.514]
[1746744527006,4.56538013,2190.4,2190.1,6.514]
[1746744529388,4.56519862,2190.5,2190.1,6.514]
[1746744529584,4.56519862,2190.5,2190.1,11.07999391]
[1746744530016,4.56519862,2190.5,2190.1,6.514]
[1746744530319,4.56519862,2190.5,2190.1,11.07999744]
[1746744530612,1.3169,2190.8,2190.2,5.33357215]
[1746744530613,5.11507679,2190.6,2190.2,5.33357215]
[1746744530811,5.11507679,2190.6,2190.2,0.7678]
[1746744530974,4.56518393,2190.5,2190.2,0.7678]
[1746744531189,4.56541139,2190.4,2190.2,0.7678]
[1746744531390,4.56542192,2190.4,2190.2,0.7678]
[1746744534326,4.56542192,2190.4,2190.1,3.0]
[1746744534527,4.56578676,2190.3,2190.0,3.0]
[1746744534728,4.56578676,2190.3,2190.0,6.51]
[1746744534907,4.56577995,2190.3,2190.0,6.51]
[1746744535092,4.56531454,2190.5,2190.0,11.07612793]
[1746744535296,4.56531454,2190.5,2190.0,13.68689866]
[1746744535494,4.56506241,2190.6,2190.1,4.56598929]
[1746744536032,9.1302233,2190.6,2190.1,4.56598929]
[1746744536234,4.56506241,2190.6,2190.1,4.56598929]
[1746744536603,4.56506241,2190.6,2190.0,13.68689866]
[1746744536604,4.56496617,2190.6,2190.2,4.56579307]
[1746744536926,4.5652501,2190.5,2190.1,3.0]
[1746744537132,4.56544264,2190.4,2190.1,3.0]
[1746744537450,4.56475099,2190.7,2190.2,4.56563299]
[1746744537590,4.56475099,2190.7,2190.3,4.56557055]
[1746744537794,4.56445461,2190.9,2190.4,5.36345128]
[1746744538017,4.56464404,2190.8,2190.4,0.7982]
[1746744538213,0.7516,2191.1,2190.5,3.0]
[1746744538432,4.56429857,2191.0,2190.5,7.94487526]
[1746744538848,0.55,2190.9,2190.1,1.17491818]
[1746744539050,0.55,2190.9,2190.0,2.61077073]
[1746744539051,0.55,2190.9,2190.0,0.04565736]
[1746744539220,4.56413775,2191.0,2190.2,7.56571047]
[1746744539426,4.56520054,2190.5,2190.1,6.51]
[1746744539625,4.56519722,2190.5,2190.1,11.07585712]
[1746744539851,4.5650199,2190.6,2190.2,4.70850964]
[1746744540062,4.56486802,2190.7,2190.3,3.0]
[1746744540256,4.56486802,2190.7,2190.3,3.14271789]
[1746744540447,4.56462817,2190.8,2190.5,3.0]
[1746744540644,4.56448904,2190.9,2190.5,7.56509059]
[1746744540845,0.7663,2191.4,2190.6,0.04564856]
[1746744541028,4.5640378,2191.1,2190.7,3.0]
[1746744541232,0.55,2191.3,2190.4,0.7565]
[1746744541432,4.5648343,2190.7,2190.6,3.0]
[1746744541634,4.56429021,2191.0,2190.4,0.7565]
[1746744541856,4.5640497,2191.1,2190.6,7.70754955]
[1746744542163,0.7663,2191.6,2190.8,0.7565]
[1746744542486,0.7663,2191.6,2190.8,0.80214009]
[1746744542668,4.56329287,2191.4,2190.9,3.0]
[1746744542869,4.56415938,2191.0,2190.9,3.0]
[1746744543162,4.56404454,2191.1,2190.9,3.0]
[1746744543544,0.7663,2191.6,2190.9,8.64173594]
[1746744543739,4.56403515,2191.1,2190.9,1.07745]
[1746744543951,4.56433429,2190.9,2190.7,3.65168705]
[1746744544156,4.56454263,2190.8,2190.7,6.65168705]
[1746744544330,0.55,2190.9,2190.4,6.10700509]
[1746744544532,4.56558462,2190.3,2190.2,0.7955]
[1746744544726,4.56579307,2190.2,2190.1,3.02582309]
[1746744544997,4.56571308,2190.3,2190.1,3.02582309]
[1746744545265,4.56545543,2190.4,2190.1,6.02582309]
[1746744545266,4.56579307,2190.2,2190.1,6.02582309]
[1746744545463,4.56579307,2190.2,2190.1,3.02582309]
[1746744546979,4.56579307,2190.2,2189.8,8.3383145]
[1746744547186,1.343,2190.5,2189.8,0.7717]
[1746744547392,4.56652178,2189.9,2189.7,3.93359153]
[1746744547551,4.56556195,2190.4,2189.9,0.7712]
[1746744547887,4.56574596,2190.3,2189.9,0.7712]
[1746744548099,4.56590661,2190.2,2190.0,3.0]
[1746744548253,8.0734921,2190.9,2190.0,3.0]
[1746744548254,4.56475099,2190.7,2190.1,4.56599493]
[1746744548580,4.56522424,2190.5,2190.2,3.0]
[1746744548752,4.51962863,2190.5,2190.2,4.36731018]
[1746744549582,0.7677,2191.1,2190.2,15.03998489]
[1746744549781,4.56468318,2190.8,2190.3,11.53080801]
[1746744550083,4.56443567,2190.9,2190.5,3.0]
[1746744550294,4.56443567,2190.9,2190.5,5.06203545]
[1746744550784,4.56443567,2190.9,2190.5,4.59382609]
[1746744550994,4.56443641,2190.9,2190.6,0.14269526]
[1746744551199,4.56456373,2190.8,2190.6,0.14269526]
[1746744551560,0.55,2191.2,2190.6,0.14269526]
[1746744551785,4.56358179,2191.3,2190.7,0.8126]
[1746744551963,4.56329287,2191.4,2190.7,0.8126]
[1746744552163,4.56454263,2190.8,2190.7,0.8126]
[1746744552750,5.11370938,2191.2,2190.7,0.8126]
[1746744552980,4.564015,2191.1,2190.7,0.8126]
[1746744553193,4.56414464,2191.0,2190.7,5.19931029]
[1746744553560,4.56414464,2191.0,2190.8,0.14269117]
[1746744553897,4.56433429,2190.9,2190.8,0.14269117]
[1746744554077,4.56423402,2191.0,2190.8,0.14269117]
[1746744554389,4.56433429,2190.9,2190.8,0.14269117]
[1746744555006,5.55396112,2190.9,2190.8,0.14269117]
[1746744555296,4.56423402,2191.0,2190.4,0.8126]
[1746744555297,4.56458535,2190.8,2190.4,1.00094065]
[1746744555497,4.56487099,2190.7,2190.4,0.95529117]
[1746744555660,4.5651675,2190.6,2190.4,0.95529117]
[1746744555853,4.56516776,2190.5,2190.4,0.8126]
[1746744556111,4.56537618,2190.4,2190.3,3.03396807]
[1746744556395,4.56537618,2190.4,2190.3,0.14272578]
[1746744556559,4.56558462,2190.3,2190.2,3.03396807]
[1746744556754,4.56537618,2190.4,2190.2,3.03396807]
[1746744556755,4.56547186,2190.4,2190.2,3.03396807]
[1746744556960,4.56547186,2190.4,2190.2,6.19629607]
[1746744556961,4.56558462,2190.3,2190.2,6.19629607]
[1746744557193,4.56558462,2190.3,2190.2,3.03396807]
[1746744557354,5.47868214,2190.3,2190.2,3.03396807]
[1746744557554,4.56558462,2190.3,2190.2,3.03396807]
[1746744558399,9.13020505,2190.6,2190.2,3.03396807]
[1746744558400,4.5650871,2190.6,2190.2,3.03396807]
[1746744558559,4.56454263,2190.8,2190.2,3.03396807]
[1746744558890,4.56520939,2190.5,2190.2,3.03396807]
[1746744559659,4.56520939,2190.5,2190.1,3.04565313]
[1746744559958,4.56520939,2190.5,2190.1,4.66241537]
[1746744560159,4.56497693,2190.6,2190.1,9.22837135]
[1746744560358,4.56497693,2190.6,2190.1,9.27402448]
[1746744560561,9.13013751,2190.6,2190.1,4.7080685]
[1746744560797,4.56504095,2190.6,2190.1,9.2740578]
[1746744562003,4.56394429,2191.1,2190.4,3.0]
[1746744562160,4.56416527,2191.0,2190.6,3.63352102]
[1746744562357,4.56475099,2190.7,2190.6,3.0]
[1746744562804,4.56454881,2190.8,2190.2,2.13981788]
[1746744562999,5.02128964,2190.7,2190.3,3.0]
[1746744563186,4.56483476,2190.7,2190.3,3.0]
[1746744563391,4.56496233,2190.6,2190.3,3.0]
[1746744563569,4.56477789,2190.7,2190.3,3.0]
[1746744563771,4.56497488,2190.6,2190.3,3.0]
[1746744564001,4.56440242,2190.9,2190.3,3.0]
[1746744564187,4.56516845,2190.5,2190.3,3.0]
[1746744564504,4.56516845,2190.5,2190.2,7.7828]
[1746744564505,4.56558462,2190.3,2190.2,3.7678]
[1746744564864,4.56543045,2190.4,2190.1,6.10700509]
[1746744565104,4.56495937,2190.6,2190.2,3.0]
[1746744565308,4.56558462,2190.3,2190.2,3.0]
[1746744565512,4.56558462,2190.3,2190.1,6.10700509]
[1746744565513,4.56579307,2190.2,2190.1,6.10700509]
[1746744565811,4.56579307,2190.2,2190.1,9.10700509]
[1746744568116,4.56579307,2190.2,2190.1,6.10700509]
[1746744568318,0.55,2190.4,2189.7,9.14097316]
[1746744568481,4.56643268,2189.9,2189.7,3.03396807]
[1746744568680,4.56606295,2190.1,2189.8,3.0]
[1746744568919,4.56637788,2190.0,2189.8,3.0]
[1746744569101,0.58802358,2190.3,2189.8,3.0]
[1746744569415,4.56608992,2190.1,2189.8,3.0]
[1746744570035,4.5659332,2190.2,2189.8,3.0]
[1746744570181,4.5660849,2190.1,2189.8,3.0]
[1746744570511,0.765,2190.5,2189.8,3.0]
[1746744570512,4.56641855,2189.9,2189.8,3.0]
[1746744571212,4.56678951,2189.8,2189.7,3.0]
[1746744571376,4.56683563,2189.7,2189.6,9.14097316]
[1746744571579,4.56683563,2189.7,2189.6,6.03396807]
[1746744573084,4.56683563,2189.7,2189.6,3.0]
[1746744573283,4.5670442,2189.6,2189.5,3.03396807]
[1746744573485,5.19589476,2189.6,2189.5,3.03396807]
[1746744573684,0.62885056,2189.6,2189.5,3.03396807]
[1746744573885,5.19589476,2189.6,2189.5,3.03396807]
[1746744574087,5.1176,2189.4,2188.4,5.79869298]
[1746744574280,12.06346075,2188.5,2188.4,5.3113254]
[1746744574485,26.13820441,2188.5,2188.4,5.3113254]
[1746744574681,8.43098391,2188.0,2187.9,10.87499734]
[1746744574984,17.00574998,2188.0,2187.9,10.87499734]
[1746744575524,21.81274998,2188.0,2187.9,10.87499734]
[1746744575711,16.87150493,2188.0,2187.9,9.32599734]
[1746744576229,18.94892709,2188.0,2187.9,9.32599734]
[1746744576398,21.38026405,2188.0,2187.9,5.32609734]
[1746744577010,5.9024196,2187.6,2187.5,5.32609734]
[1746744577219,16.2074196,2187.6,2187.5,5.32609734]
[1746744577423,22.56126176,2187.6,2187.5,5.32609734]
[1746744577626,16.76269984,2187.6,2187.5,5.32609734]
[1746744577790,25.20196292,2187.6,2187.5,2.51031361]
[1746744578239,5.12184656,2187.3,2187.0,8.84077639]
[1746744578395,11.75452772,2187.1,2187.0,8.36801496]
[1746744578594,28.20452772,2187.1,2187.0,8.36801496]
[1746744578832,29.23603655,2187.1,2187.0,8.36801496]
[1746744579194,29.54663655,2187.1,2187.0,8.36801496]
[1746744581211,29.54663655,2187.1,2185.5,0.8013]
[1746744581212,4.57540263,2185.6,2185.5,0.8013]
[1746744581440,8.1816,2186.3,2185.5,0.8013]
[1746744581742,4.5753719,2185.7,2185.5,0.8013]
[1746744581903,4.07494059,2185.7,2185.5,0.8013]
[1746744582107,4.57540263,2185.6,2185.5,0.8013]
[1746744582539,4.88470519,2186.3,2185.5,0.8013]
[1746744582752,4.57351932,2186.5,2185.6,7.57529187]
[1746744582959,4.57437237,2186.1,2185.6,7.57529187]
[1746744583169,4.57400547,2186.3,2185.8,3.0]
[1746744583326,4.57400547,2186.3,2185.8,4.62072304]
[1746744583518,4.57383782,2186.4,2186.0,0.8011]
[1746744583720,4.5727146,2186.9,2186.0,0.8011]
[1746744584037,4.5727146,2186.9,2186.0,11.48565007]
[1746744584233,0.55,2186.8,2186.0,6.9111]
[1746744584553,4.57359157,2186.5,2186.0,6.9111]
[1746744584721,7.2164873,2187.0,2186.2,3.0]
[1746744584722,4.57342375,2186.6,2186.2,3.0]
[1746744584924,4.57357945,2186.5,2186.2,3.0]
[1746744585431,4.57342571,2186.6,2186.2,3.0]
[1746744585929,0.55,2186.9,2186.2,3.0]
[1746744586129,4.57335374,2186.6,2186.3,0.9162354]
[1746744586539,4.57321685,2186.7,2186.3,0.9162354]
[1746744586856,16.45,2187.1,2186.2,7.44517185]
[1746744587071,21.02233249,2187.1,2186.3,5.3288063]
[1746744587251,4.57320871,2186.7,2186.3,0.7549]
[1746744587425,4.57283802,2186.9,2186.3,0.7549]
[1746744587426,4.57283802,2186.9,2186.4,1.14389887]
[1746744587631,4.57291085,2186.8,2186.4,1.14389887]
[1746744587832,4.57283407,2186.9,2186.4,1.14389887]
[1746744588984,4.57277648,2186.9,2186.4,8.71752492]
[1746744589675,4.57278668,2186.9,2186.4,8.71758108]
[1746744589875,4.57278668,2186.9,2186.5,4.57347259]
[1746744590172,4.91277442,2187.3,2186.9,3.0]
[1746744590173,4.57202651,2187.3,2186.9,3.0]
[1746744590379,4.57196261,2187.3,2186.9,6.647]
[1746744590673,4.57175927,2187.4,2186.9,11.21966233]
[1746744590851,4.57131819,2187.6,2187.1,5.40211598]
[1746744591047,4.57131819,2187.6,2187.1,5.40219257]
[1746744591581,4.57100589,2187.8,2187.3,4.57175146]
[1746744591780,4.57103748,2187.7,2187.3,4.57175146]
[1746744591977,4.57063358,2187.9,2187.4,4.57152815]
[1746744592273,4.57060645,2187.9,2187.6,0.7805]
[1746744592881,4.57026766,2188.1,2187.6,8.99870464]
[1746744593075,4.57047283,2188.0,2187.6,4.4275]
[1746744593294,4.57029902,2188.1,2187.6,5.35162328]
[1746744593455,5.02722031,2188.1,2187.6,0.7805]
[1746744593658,4.57069488,2187.9,2187.6,0.7805]
[1746744593861,4.91480238,2188.5,2187.7,4.57100672]
[1746744594179,4.57018202,2188.1,2187.6,5.35159345]
[1746744594357,4.57019797,2188.1,2187.7,4.57084575]
[1746744594558,4.57040099,2188.0,2187.6,0.7805]
[1746744594752,0.55,2188.3,2187.6,0.7805]
[1746744594985,4.57017503,2188.1,2187.6,8.0695]
[1746744595275,0.51195529,2188.2,2187.6,8.0695]
[1746744595478,4.57038988,2188.0,2187.7,3.0]
[1746744595978,4.57038391,2188.0,2187.0,4.89309123]
[1746744596177,4.57142978,2187.5,2187.1,4.57223245]
[1746744596475,0.55,2187.9,2187.1,3.0]
[1746744596640,4.57153293,2187.5,2187.1,7.57226289]
[1746744596842,4.57110696,2187.7,2187.3,3.0]
[1746744597042,4.57140552,2187.6,2187.2,3.0]
[1746744597241,4.57140416,2187.6,2187.1,7.57218015]
[1746744597481,4.57147049,2187.5,2187.1,3.0]
[1746744597687,4.57101065,2187.7,2187.0,5.02883248]
[1746744597986,4.57193399,2187.3,2187.2,3.642]
[1746744598548,5.028322,2187.6,2187.0,5.02883248]
[1746744598783,5.028322,2187.6,2187.1,3.647]
[1746744598974,4.57226464,2187.1,2187.0,8.71129123]
[1746744599178,4.57226464,2187.1,2187.0,0.8182]
[1746744599559,0.55,2187.5,2187.0,0.8182]
[1746744599753,4.57226464,2187.1,2187.0,0.8182]
[1746744600581,4.57038391,2188.0,2187.0,0.8182]
[1746744600789,4.57226464,2187.1,2187.0,0.8182]
[1746744601089,4.57280516,2186.9,2186.7,0.7633]
[1746744601248,4.57278265,2186.9,2186.7,0.7633]
[1746744601454,4.57289189,2186.8,2186.7,0.7633]
[1746744601654,0.55,2187.5,2186.7,0.7633]
[1746744601875,4.57195803,2187.3,2186.7,5.38200713]
[1746744602083,5.12188077,2187.3,2186.7,0.7633]
[1746744602272,4.5726457,2187.0,2186.7,0.7633]
[1746744602477,4.57259467,2187.0,2186.7,0.7633]
[1746744602688,0.4337,2187.4,2186.7,0.7633]
[1746744602888,4.57195857,2187.3,2186.9,7.57266281]
[1746744603275,4.57207171,2187.2,2186.9,3.0]
[1746744603479,4.57193399,2187.3,2186.9,7.5726454]
[1746744603879,0.55,2187.7,2186.9,7.57259379]
[1746744604075,4.57289189,2186.8,2186.7,0.7633]
[1746744604408,4.5734157,2186.6,2186.3,0.7636]
[1746744604769,4.57320104,2186.7,2186.3,5.33753172]
[1746744604980,4.57320104,2186.7,2186.3,3.7636]
[1746744605206,0.55,2187.0,2186.3,8.33745344]
[1746744605392,4.57302247,2186.8,2186.3,11.95677754]
[1746744605568,4.57269647,2186.9,2186.3,7.3829241]
[1746744605769,4.57351439,2186.6,2186.4,7.263]
[1746744605986,4.57354065,2186.5,2186.3,8.0246]
[1746744606188,4.57335336,2186.6,2186.3,0.7636]
[1746744606406,4.57326639,2186.7,2186.3,0.7636]
[1746744606591,4.57334406,2186.6,2186.3,0.7636]
[1746744606795,4.57268384,2186.9,2186.3,0.7636]
[1746744606994,4.57349091,2186.6,2186.3,0.7636]
[1746744607409,4.5737285,2186.4,2186.3,0.7636]
[1746744607825,4.57290613,2186.8,2186.3,0.7636]
[1746744608106,4.5737285,2186.4,2186.3,0.7636]
[1746744608916,4.5737285,2186.4,2186.2,10.252]
[1746744609110,0.55,2186.6,2185.7,0.7998]
[1746744609307,4.57435615,2186.1,2186.0,0.23877123]
[1746744609474,6.03921187,2186.1,2186.0,0.23877123]
[1746744609674,4.57534722,2185.7,2185.3,0.7998]
[1746744609904,4.57534722,2185.7,2185.3,4.4218]
[1746744610111,4.57535115,2185.7,2185.4,3.0]
[1746744610314,4.57543083,2185.6,2185.4,3.0]
[1746744610519,4.57561198,2185.5,2185.4,3.0]
[1746744610882,4.57582135,2185.4,2185.3,0.7998]
[1746744611177,4.57643233,2185.2,2185.0,17.2379]
[1746744611381,4.5752426,2185.7,2185.0,17.2379]
[1746744611382,4.57562877,2185.5,2185.0,17.2379]
[1746744611618,4.57644959,2185.1,2185.0,0.7719]
[1746744611823,4.5768685,2184.9,2184.8,3.623]
[1746744612225,0.55,2185.3,2184.7,0.8216]
[1746744612425,4.57685399,2185.0,2184.7,0.8216]
[1746744612627,0.55,2185.5,2184.7,0.8216]
[1746744612835,4.57662168,2185.1,2184.7,0.8216]
[1746744613036,4.57780549,2184.5,2184.3,0.8293]
[1746744613334,0.55,2184.9,2184.3,0.8293]
[1746744613534,4.57766529,2184.6,2184.3,0.8293]
[1746744613834,4.57772115,2184.5,2184.3,0.8293]
[1746744614223,0.55,2185.3,2184.3,1.67008387]
[1746744614424,4.57759944,2184.6,2184.3,0.8293]
[1746744614601,4.57744517,2184.7,2184.3,0.8293]
[1746744614803,4.57744517,2184.7,2184.3,3.8293]
[1746744615019,4.57782758,2184.5,2184.3,3.8293]
[1746744615225,4.5778148,2184.5,2184.3,0.8293]
[1746744615541,4.57720494,2184.8,2184.3,0.8293]
[1746744615710,0.55,2185.0,2184.3,0.8293]
[1746744615899,4.5768685,2184.9,2184.3,5.40730057]
[1746744616099,4.5768685,2184.9,2184.4,4.57782512]
[1746744616324,4.57718584,2184.8,2184.3,5.40735508]
[1746744616636,4.57791613,2184.4,2184.0,1.01810913]
[1746744616935,4.57854493,2184.1,2184.0,0.23890913]
[1746744617143,4.57854493,2184.1,2183.7,0.7792]
[1746744617440,4.57819055,2184.3,2183.7,1.01817154]
[1746744617643,4.57844244,2184.2,2183.7,1.01817154]
[1746744617823,4.57884253,2184.0,2183.7,0.7792]
[1746744618030,4.57884253,2184.0,2182.7,0.7862]
[1746744618031,9.15834782,2183.8,2182.7,0.7862]
[1746744618350,0.55,2183.7,2182.8,0.0457906]
[1746744618514,0.55,2183.6,2182.7,0.7862]
[1746744618833,4.4563,2184.0,2182.9,3.0]
[1746744619000,4.57951465,2183.7,2183.3,0.77828625]
[1746744619200,24.39316092,2184.4,2183.3,0.77828625]